fUSD/lending_fUSD_20260621
["ID","MTS","AMOUNT","RATE_DAILY","PERIOD"]
[425914649,1782034276000,-500.0,0.00028767,2]
[425914648,1782034276000,-500.0,0.00028767,2]
[425914646,1782034276000,-6460.99,0.00028767,2]
[425914652,1782034276000,-500.0,0.00028767,2]
[425914643,1782034276000,-500.0,0.00028767,2]
[425914654,1782034276000,-4709.82,0.00028767,2]
[425914659,1782034276000,-500.0,0.00028767,2]
[425914650,1782034276000,-5607.53,0.00028767,2]
[425914668,1782034276000,-5236.41,0.00028767,2]
[425914667,1782034276000,-500.0,0.00028767,2]
[425914658,1782034276000,-500.0,0.00028767,2]
[425914657,1782034276000,-500.0,0.00028767,2]
[425914653,1782034276000,-500.0,0.00028767,2]
[425914655,1782034276000,-9276.24,0.00028767,2]
[425914651,1782034276000,-1233.05,0.00028767,2]
[425914647,1782034276000,-500.0,0.00028767,2]
[425914656,1782034276000,-500.0,0.00028767,2]
[425914664,1782034276000,-6181.25,0.00028767,2]
[425914727,1782034277000,-3494.12,0.00028767,2]
[425914712,1782034277000,-5693.51,0.00028767,2]
[425914713,1782034277000,-4835.75,0.00028767,2]
[425914719,1782034277000,-607.6,0.00028767,2]
[425914726,1782034277000,-12977.31,0.00028767,2]
[425914720,1782034277000,-7024.5,0.00028767,2]
[425914722,1782034277000,-573.05,0.00028767,2]
[425914724,1782034277000,-500.0,0.00028767,2]
[425914721,1782034277000,-1284.83,0.00028767,2]
[425914725,1782034277000,-500.0,0.00028767,2]
[425914736,1782034277000,-500.0,0.00028767,2]
[425914728,1782034277000,-500.0,0.00028767,2]
[425914729,1782034277000,-1419.28,0.00028767,2]
[425914731,1782034277000,-1371.61,0.00028767,2]
[425914730,1782034277000,-500.0,0.00028767,2]
[425914732,1782034277000,-500.0,0.00028767,2]
[425914739,1782034277000,-500.0,0.00028767,2]
[425914740,1782034277000,-525.42,0.00028767,2]
[425914733,1782034277000,-863.82,0.00028767,2]
[425914734,1782034277000,-500.0,0.00028767,2]
[425914714,1782034277000,-270.46056362,0.00028767,2]
[425914723,1782034277000,-500.0,0.00028767,2]
[425914717,1782034277000,-500.0,0.00028767,2]
[425914700,1782034277000,-9994.16,0.00028767,2]
[425914715,1782034277000,-500.0,0.00028767,2]
[425914738,1782034277000,-475.75005761,0.00028767,2]
[425914692,1782034277000,-4427.39,0.00028767,2]
[425914695,1782034277000,-1035.12,0.00028767,2]
[425914693,1782034277000,-845.37,0.00028767,2]
[425914701,1782034277000,-500.0,0.00028767,2]
[425914697,1782034277000,-500.0,0.00028767,2]
[425914694,1782034277000,-6285.21,0.00028767,2]
[425914702,1782034277000,-500.0,0.00028767,2]
[425914699,1782034277000,-4988.34,0.00028767,2]
[425914696,1782034277000,-651.22,0.00028767,2]
[425914698,1782034277000,-7097.95,0.00028767,2]
[425914703,1782034277000,-500.0,0.00028767,2]
[425914704,1782034277000,-500.0,0.00028767,2]
[425914706,1782034277000,-975.63,0.00028767,2]
[425914707,1782034277000,-500.0,0.00028767,2]
[425914705,1782034277000,-2393.33,0.00028767,2]
[425914709,1782034277000,-500.0,0.00028767,2]
[425914708,1782034277000,-500.0,0.00028767,2]
[425914711,1782034277000,-500.0,0.00028767,2]
[425914710,1782034277000,-500.0,0.00028767,2]
[425914716,1782034277000,-500.0,0.00028767,2]
[425914718,1782034277000,-609.4,0.00028767,2]
[425914737,1782034277000,-3734.47,0.00028767,2]
[425914735,1782034277000,-1193.26,0.00028767,2]
[425914744,1782034277000,-3863.75,0.00028767,2]
[425914769,1782034277000,-500.0,0.00028767,2]
[425914770,1782034277000,-500.0,0.00028767,2]
[425914778,1782034277000,-9343.37,0.00028767,2]
[425914767,1782034277000,-500.0,0.00028767,2]
[425914771,1782034277000,-873.54,0.00028767,2]
[425914772,1782034277000,-500.0,0.00028767,2]
[425914777,1782034277000,-500.0,0.00028767,2]
[425914775,1782034277000,-8960.48,0.00028767,2]
[425914776,1782034277000,-500.0,0.00028767,2]
[425914773,1782034277000,-500.0,0.00028767,2]
[425914781,1782034277000,-514.73,0.00028767,2]
[425914780,1782034277000,-500.0,0.00028767,2]
[425914782,1782034277000,-527.49,0.00028767,2]
[425914779,1782034277000,-500.0,0.00028767,2]
[425914786,1782034277000,-500.0,0.00028767,2]
[425914783,1782034277000,-740.41,0.00028767,2]
[425914787,1782034277000,-596.53894305,0.00028767,2]
[425914788,1782034277000,-8715.71,0.00028767,2]
[425914785,1782034277000,-7552.61,0.00028767,2]
[425914789,1782034277000,-500.0,0.00028767,2]
[425914747,1782034277000,-1180.04,0.00028767,2]
[425914768,1782034277000,-500.0,0.00028767,2]
[425914766,1782034277000,-9894.35,0.00028767,2]
[425914774,1782034277000,-1430.98,0.00028767,2]
[425914757,1782034277000,-5694.18,0.00028767,2]
[425914741,1782034277000,-500.0,0.00028767,2]
[425914763,1782034277000,-5999.6,0.00028767,2]
[425914784,1782034277000,-623.51,0.00028767,2]
[425914743,1782034277000,-3915.69,0.00028767,2]
[425914746,1782034277000,-1028.77,0.00028767,2]
[425914745,1782034277000,-500.0,0.00028767,2]
[425914750,1782034277000,-9009.8,0.00028767,2]
[425914742,1782034277000,-645.65,0.00028767,2]
[425914749,1782034277000,-9281.79,0.00028767,2]
[425914751,1782034277000,-66116.993698,0.00028767,2]
[425914752,1782034277000,-819.65,0.00028767,2]
[425914748,1782034277000,-7110.78,0.00028767,2]
[425914764,1782034277000,-500.0,0.00028767,2]
[425914754,1782034277000,-500.0,0.00028767,2]
[425914765,1782034277000,-500.0,0.00028767,2]
[425914753,1782034277000,-500.0,0.00028767,2]
[425914756,1782034277000,-500.0,0.00028767,2]
[425914759,1782034277000,-500.0,0.00028767,2]
[425914760,1782034277000,-500.0,0.00028767,2]
[425914758,1782034277000,-6602.72,0.00028767,2]
[425914761,1782034277000,-500.0,0.00028767,2]
[425914762,1782034277000,-547.04,0.00028767,2]
[425914755,1782034277000,-924.26,0.00028767,2]
[425914826,1782034278000,-500.0,0.00028767,2]
[425914828,1782034278000,-4358.65,0.00028767,2]
[425914829,1782034278000,-3641.08,0.00028767,2]
[425914837,1782034278000,-500.0,0.00028767,2]
[425914827,1782034278000,-4215.59,0.00028767,2]
[425914825,1782034278000,-500.0,0.00028767,2]
[425914823,1782034278000,-4893.3,0.00028767,2]
[425914820,1782034278000,-488.86962608,0.00028767,2]
[425914822,1782034278000,-1023.62,0.00028767,2]
[425914832,1782034278000,-500.0,0.00028767,2]
[425914824,1782034278000,-11591.31,0.00028767,2]
[425914831,1782034278000,-723.99,0.00028767,2]
[425914845,1782034278000,-9148.39,0.00028767,2]
[425914834,1782034278000,-500.0,0.00028767,2]
[425914833,1782034278000,-577.92,0.00028767,2]
[425914835,1782034278000,-7413.99,0.00028767,2]
[425914836,1782034278000,-500.0,0.00028767,2]
[425914838,1782034278000,-500.0,0.00028767,2]
[425914840,1782034278000,-5877.83,0.00028767,2]
[425914839,1782034278000,-9516.55,0.00028767,2]
[425914850,1782034278000,-3669.43,0.00028767,2]
[425914841,1782034278000,-4397.31,0.00028767,2]
[425914847,1782034278000,-15685.64,0.00028767,2]
[425914848,1782034278000,-975.96,0.00028767,2]
[425914821,1782034278000,-4698.43,0.00028767,2]
[425914830,1782034278000,-3811.71,0.00028767,2]
[425914816,1782034278000,-3023.25,0.00028767,2]
[425914801,1782034278000,-500.0,0.00028767,2]
[425914815,1782034278000,-500.0,0.00028767,2]
[425914790,1782034278000,-287.82845488,0.00028767,2]
[425914791,1782034278000,-7687.48,0.00028767,2]
[425914798,1782034278000,-500.0,0.00028767,2]
[425914795,1782034278000,-1269.99,0.00028767,2]
[425914792,1782034278000,-8970.19,0.00028767,2]
[425914849,1782034278000,-500.0,0.00028767,2]
[425914796,1782034278000,-4920.76,0.00028767,2]
[425914800,1782034278000,-500.0,0.00028767,2]
[425914793,1782034278000,-1006.43,0.00028767,2]
[425914794,1782034278000,-500.0,0.00028767,2]
[425914799,1782034278000,-500.0,0.00028767,2]
[425914797,1782034278000,-500.0,0.00028767,2]
[425914803,1782034278000,-543.04,0.00028767,2]
[425914802,1782034278000,-500.0,0.00028767,2]
[425914813,1782034278000,-5031.33,0.00028767,2]
[425914812,1782034278000,-500.0,0.00028767,2]
[425914808,1782034278000,-500.0,0.00028767,2]
[425914807,1782034278000,-10124.77,0.00028767,2]
[425914806,1782034278000,-500.0,0.00028767,2]
[425914809,1782034278000,-500.0,0.00028767,2]
[425914805,1782034278000,-8676.2,0.00028767,2]
[425914804,1782034278000,-500.0,0.00028767,2]
[425914811,1782034278000,-500.0,0.00028767,2]
[425914810,1782034278000,-500.0,0.00028767,2]
[425914814,1782034278000,-500.0,0.00028767,2]
[425914817,1782034278000,-3866.95,0.00028767,2]
[425914819,1782034278000,-607.49,0.00028767,2]
[425914818,1782034278000,-560.95,0.00028767,2]
[425914844,1782034278000,-500.0,0.00028767,2]
[425914842,1782034278000,-500.0,0.00028767,2]
[425914843,1782034278000,-500.0,0.00028767,2]
[425914881,1782034278000,-552.83384068,0.00028767,2]
[425914878,1782034278000,-500.0,0.00028767,2]
[425914883,1782034278000,-500.0,0.00028767,2]
[425914886,1782034278000,-3617.85,0.00028767,2]
[425914887,1782034278000,-4791.28,0.00028767,2]
[425914890,1782034278000,-2750.97,0.00028767,2]
[425914888,1782034278000,-500.0,0.00028767,2]
[425914892,1782034278000,-500.0,0.00028779,2]
[425914891,1782034278000,-647.36493611,0.00028767,2]
[425914897,1782034278000,-500.0,0.00028779,2]
[425914889,1782034278000,-5168.02,0.00028767,2]
[425914893,1782034278000,-500.0,0.00028779,2]
[425914882,1782034278000,-1935.26,0.00028767,2]
[425914895,1782034278000,-500.0,0.00028779,2]
[425914894,1782034278000,-500.0,0.00028779,2]
[425914898,1782034278000,-500.0,0.00028779,2]
[425914899,1782034278000,-500.0,0.00028779,2]
[425914902,1782034278000,-500.0,0.00028779,2]
[425914901,1782034278000,-500.0,0.00028779,2]
[425914900,1782034278000,-500.0,0.00028779,2]
[425914906,1782034278000,-500.0,0.00028779,2]
[425914903,1782034278000,-500.0,0.00028779,2]
[425914904,1782034278000,-500.0,0.00028779,2]
[425914907,1782034278000,-1357604.60158127,0.0002878,2]
[425914905,1782034278000,-500.0,0.00028779,2]
[425914846,1782034278000,-1000.0,0.00028767,2]
[425914896,1782034278000,-500.0,0.00028779,2]
[425914879,1782034278000,-500.0,0.00028767,2]
[425914877,1782034278000,-7287.61,0.00028767,2]
[425914876,1782034278000,-504.3,0.00028767,2]
[425914853,1782034278000,-500.0,0.00028767,2]
[425914851,1782034278000,-500.0,0.00028767,2]
[425914852,1782034278000,-500.0,0.00028767,2]
[425914854,1782034278000,-1121.32,0.00028767,2]
[425914855,1782034278000,-7006.76,0.00028767,2]
[425914858,1782034278000,-840.08,0.00028767,2]
[425914860,1782034278000,-500.0,0.00028767,2]
[425914859,1782034278000,-904.85,0.00028767,2]
[425914857,1782034278000,-500.0,0.00028767,2]
[425914856,1782034278000,-970.28,0.00028767,2]
[425914861,1782034278000,-6946.63,0.00028767,2]
[425914880,1782034278000,-500.0,0.00028767,2]
[425914864,1782034278000,-2639.33,0.00028767,2]
[425914865,1782034278000,-874.1,0.00028767,2]
[425914862,1782034278000,-500.0,0.00028767,2]
[425914872,1782034278000,-4300.92,0.00028767,2]
[425914885,1782034278000,-500.0,0.00028767,2]
[425914875,1782034278000,-5504.26,0.00028767,2]
[425914870,1782034278000,-1246.89,0.00028767,2]
[425914873,1782034278000,-1553.55,0.00028767,2]
[425914874,1782034278000,-2086.7,0.00028767,2]
[425914884,1782034278000,-3538.8,0.00028767,2]
[425914868,1782034278000,-500.0,0.00028767,2]
[425914867,1782034278000,-500.0,0.00028767,2]
[425914863,1782034278000,-4407.46,0.00028767,2]
[425914869,1782034278000,-513.46,0.00028767,2]
[425914866,1782034278000,-5490.85,0.00028767,2]
[425914871,1782034278000,-673.1,0.00028767,2]
[425914915,1782034279000,-500.0,0.00028767,2]
[425914908,1782034279000,-790.37131068,0.00027397,2]
[425914909,1782034279000,-3379.50868932,0.00027397,2]
[425914919,1782034279000,-500.0,0.00028766,2]
[425914917,1782034279000,-1218.50010033,0.00028493,2]
[425914912,1782034279000,-500.0,0.00028219,2]
[425914918,1782034279000,-602.12989967,0.00028493,2]
[425914913,1782034279000,-500.0,0.00028493,2]
[425914911,1782034279000,-239.43963027,0.00027945,2]
[425914916,1782034279000,-2884.6344156,0.0002878,2]
[425914920,1782034279000,-1057.56337127,0.0002878,2]
[425914910,1782034279000,-1051.12036973,0.00027945,2]
[425914921,1782034279000,-970.7050142,0.0002878,2]
[425914914,1782034279000,-261.9868528,0.00028767,2]
[425914943,1782034280000,-1820.63,0.00028767,2]
[425914946,1782034280000,-1290.56,0.00028767,2]
[425914947,1782034280000,-4169.88,0.00028767,2]
[425914945,1782034280000,-500.0,0.00028767,2]
[425914944,1782034280000,-628.45,0.00028767,2]
[425914948,1782034280000,-3304.67,0.00028779,2]
[425914952,1782034280000,-29467.00342987,0.0002878,2]
[425914955,1782034280000,-3304.67,0.00028779,2]
[425914953,1782034280000,-629.69149486,0.0002878,2]
[425914960,1782034280000,-158.0,0.00028862,30]
[425914958,1782034280000,-167.81,0.000288,7]
[425914951,1782034280000,-40600.40548968,0.0002878,2]
[425914959,1782034280000,-162.0,0.00028862,30]
[425914956,1782034280000,-66785.39520325,0.0002878,2]
[425914957,1782034280000,-727.35,0.000288,7]
[425914961,1782034280000,-167.0,0.00028862,30]
[425914974,1782034280000,-21444.0026,0.00028941,2]
[425914963,1782034280000,-290.0,0.00028862,30]
[425914968,1782034280000,-3146.81027154,0.00028873,2]
[425914969,1782034280000,-395.3672683,0.00028873,2]
[425914954,1782034280000,-500.0,0.00027671,2]
[425914942,1782034280000,-500.0,0.00028767,2]
[425914940,1782034280000,-500.0,0.00028766,2]
[425914938,1782034280000,-500.0,0.00028766,2]
[425914971,1782034280000,-167.698,0.0002888,21]
[425914922,1782034280000,-3304.67,0.00027396,2]
[425914923,1782034280000,-500.0,0.00027397,2]
[425914924,1782034280000,-500.0,0.00027397,2]
[425914925,1782034280000,-3220.88,0.00027397,10]
[425914928,1782034280000,-500.0,0.00027671,2]
[425914927,1782034280000,-4169.88,0.00027671,2]
[425914932,1782034280000,-4169.88,0.00028219,2]
[425914926,1782034280000,-3052.51703138,0.00027601,2]
[425914949,1782034280000,-3304.67,0.00028779,2]
[425914931,1782034280000,-1290.56,0.00028219,2]
[425914929,1782034280000,-3304.67,0.00027944,2]
[425914936,1782034280000,-1290.56,0.00028493,2]
[425914935,1782034280000,-500.0,0.00028493,2]
[425914933,1782034280000,-3304.67,0.00028492,2]
[425914937,1782034280000,-4169.88,0.00028493,2]
[425914934,1782034280000,-628.45,0.00028493,2]
[425914939,1782034280000,-500.0,0.00028766,2]
[425914941,1782034280000,-500.0,0.00028766,2]
[425914950,1782034280000,-3304.67,0.00028779,2]
[425914930,1782034280000,-4169.88,0.00027945,2]
[425914962,1782034280000,-156.0,0.00028862,30]
[425914967,1782034280000,-354.0,0.00028872,30]
[425914966,1782034280000,-155.0,0.00028872,30]
[425914995,1782034280000,-500.0,0.00029041,2]
[425914998,1782034280000,-500.0,0.00029041,2]
[425914997,1782034280000,-622.19,0.00029041,2]
[425914996,1782034280000,-500.0,0.00029041,2]
[425915000,1782034280000,-500.0,0.00029041,2]
[425915001,1782034280000,-500.0,0.00029041,2]
[425914999,1782034280000,-500.0,0.00029041,2]
[425915005,1782034280000,-500.0,0.00029041,2]
[425915002,1782034280000,-500.0,0.00029041,2]
[425914994,1782034280000,-500.0,0.00029041,2]
[425915003,1782034280000,-500.0,0.00029041,2]
[425915008,1782034280000,-715.56,0.00029041,2]
[425915006,1782034280000,-500.0,0.00029041,2]
[425915010,1782034280000,-500.0,0.00029041,2]
[425915012,1782034280000,-500.0,0.00029041,2]
[425915009,1782034280000,-500.0,0.00029041,2]
[425915011,1782034280000,-500.0,0.00029041,2]
[425915013,1782034280000,-572.94,0.00029041,2]
[425915015,1782034280000,-725.19,0.00029041,2]
[425915014,1782034280000,-583.72,0.00029041,2]
[425915004,1782034280000,-500.0,0.00029041,2]
[425914993,1782034280000,-500.0,0.00029041,2]
[425915007,1782034280000,-500.0,0.00029041,2]
[425914992,1782034280000,-500.0,0.00029041,2]
[425914990,1782034280000,-180.47710061,0.00029041,2]
[425914965,1782034280000,-155.0,0.00028872,30]
[425914964,1782034280000,-161.0,0.00028867,30]
[425914973,1782034280000,-3482.5389547,0.000289,2]
[425914972,1782034280000,-185.55416937,0.000289,2]
[425914970,1782034280000,-3276.852,0.0002888,21]
[425914977,1782034280000,-192.13631827,0.00029041,15]
[425914979,1782034280000,-500.0,0.00029041,2]
[425914976,1782034280000,-259.0,0.00028993,10]
[425914988,1782034280000,-500.0,0.00029041,2]
[425914975,1782034280000,-200.0,0.00028965,2]
[425914984,1782034280000,-524.09,0.00029041,2]
[425914987,1782034280000,-500.0,0.00029041,2]
[425914986,1782034280000,-500.0,0.00029041,2]
[425914983,1782034280000,-555.81,0.00029041,2]
[425914981,1782034280000,-500.0,0.00029041,2]
[425914985,1782034280000,-500.0,0.00029041,2]
[425914982,1782034280000,-500.0,0.00029041,2]
[425914980,1782034280000,-500.0,0.00029041,2]
[425914989,1782034280000,-915.88,0.00029041,2]
[425914978,1782034280000,-208385.85650434,0.00029041,2]
[425914991,1782034280000,-500.0,0.00029041,2]
[425915059,1782034281000,-500.0,0.00029041,2]
[425915056,1782034281000,-500.0,0.00029041,2]
[425915055,1782034281000,-500.0,0.00029041,2]
[425915044,1782034281000,-500.0,0.00029041,2]
[425915047,1782034281000,-500.0,0.00029041,2]
[425915046,1782034281000,-549.6,0.00029041,2]
[425915053,1782034281000,-500.0,0.00029041,2]
[425915048,1782034281000,-737.01883377,0.00029041,2]
[425915049,1782034281000,-536.91,0.00029041,2]
[425915066,1782034281000,-691.29,0.00029041,2]
[425915050,1782034281000,-500.0,0.00029041,2]
[425915051,1782034281000,-505.82,0.00029041,2]
[425915061,1782034281000,-4164.65,0.00029041,2]
[425915069,1782034281000,-500.0,0.00029041,2]
[425915064,1782034281000,-684.32,0.00029041,2]
[425915062,1782034281000,-526.68,0.00029041,2]
[425915057,1782034281000,-500.0,0.00029041,2]
[425915060,1782034281000,-500.0,0.00029041,2]
[425915065,1782034281000,-500.0,0.00029041,2]
[425915063,1782034281000,-547.64825645,0.00029041,2]
[425915078,1782034281000,-500.0,0.00029041,2]
[425915071,1782034281000,-609.45,0.00029041,2]
[425915070,1782034281000,-577.84,0.00029041,2]
[425915068,1782034281000,-652.05,0.00029041,2]
[425915075,1782034281000,-438.25281227,0.00029041,2]
[425915045,1782034281000,-571.04,0.00029041,2]
[425915058,1782034281000,-1005.47,0.00029041,2]
[425915052,1782034281000,-500.0,0.00029041,2]
[425915027,1782034281000,-500.0,0.00029041,2]
[425915043,1782034281000,-500.0,0.00029041,2]
[425915016,1782034281000,-500.0,0.00029041,2]
[425915018,1782034281000,-500.0,0.00029041,2]
[425915017,1782034281000,-500.0,0.00029041,2]
[425915019,1782034281000,-865.17,0.00029041,2]
[425915020,1782034281000,-554.24,0.00029041,2]
[425915073,1782034281000,-500.0,0.00029041,2]
[425915028,1782034281000,-500.0,0.00029041,2]
[425915021,1782034281000,-500.0,0.00029041,2]
[425915029,1782034281000,-500.0,0.00029041,2]
[425915026,1782034281000,-500.0,0.00029041,2]
[425915023,1782034281000,-519.96,0.00029041,2]
[425915025,1782034281000,-500.0,0.00029041,2]
[425915022,1782034281000,-517.48,0.00029041,2]
[425915024,1782034281000,-500.0,0.00029041,2]
[425915030,1782034281000,-500.0,0.00029041,2]
[425915032,1782034281000,-500.0,0.00029041,2]
[425915042,1782034281000,-739.28,0.00029041,2]
[425915031,1782034281000,-816.73,0.00029041,2]
[425915033,1782034281000,-654.57,0.00029041,2]
[425915034,1782034281000,-746.14,0.00029041,2]
[425915036,1782034281000,-500.0,0.00029041,2]
[425915035,1782034281000,-825.3,0.00029041,2]
[425915040,1782034281000,-500.0,0.00029041,2]
[425915039,1782034281000,-454.63770985,0.00029041,2]
[425915038,1782034281000,-4965.63,0.00029041,2]
[425915037,1782034281000,-537.48,0.00029041,2]
[425915041,1782034281000,-960.39,0.00029041,2]
[425915054,1782034281000,-500.0,0.00029041,2]
[425915076,1782034281000,-500.0,0.00029041,2]
[425915067,1782034281000,-500.0,0.00029041,2]
[425915077,1782034281000,-3648.39,0.00029041,2]
[425915113,1782034281000,-789.64,0.00029041,2]
[425915108,1782034281000,-500.0,0.00029041,2]
[425915110,1782034281000,-727.28,0.00029041,2]
[425915109,1782034281000,-500.0,0.00029041,2]
[425915112,1782034281000,-500.0,0.00029041,2]
[425915111,1782034281000,-500.0,0.00029041,2]
[425915107,1782034281000,-398.30342006,0.00029041,2]
[425915114,1782034281000,-500.0,0.00029041,2]
[425915115,1782034281000,-500.0,0.00029041,2]
[425915129,1782034281000,-500.0,0.00029041,2]
[425915123,1782034281000,-500.0,0.00029041,2]
[425915124,1782034281000,-500.0,0.00029041,2]
[425915122,1782034281000,-500.0,0.00029041,2]
[425915120,1782034281000,-589.86,0.00029041,2]
[425915119,1782034281000,-621.16,0.00029041,2]
[425915125,1782034281000,-500.0,0.00029041,2]
[425915118,1782034281000,-500.0,0.00029041,2]
[425915121,1782034281000,-627.53,0.00029041,2]
[425915127,1782034281000,-500.0,0.00029041,2]
[425915126,1782034281000,-500.0,0.00029041,2]
[425915128,1782034281000,-500.0,0.00029041,2]
[425915130,1782034281000,-500.0,0.00029041,2]
[425915131,1782034281000,-500.0,0.00029041,2]
[425915134,1782034281000,-500.0,0.00029041,2]
[425915135,1782034281000,-500.0,0.00029041,2]
[425915074,1782034281000,-500.0,0.00029041,2]
[425915132,1782034281000,-500.0,0.00029041,2]
[425915105,1782034281000,-500.0,0.00029041,2]
[425915116,1782034281000,-500.0,0.00029041,2]
[425915133,1782034281000,-500.0,0.00029041,2]
[425915106,1782034281000,-500.0,0.00029041,2]
[425915117,1782034281000,-161.00287,0.00029041,2]
[425915079,1782034281000,-500.0,0.00029041,2]
[425915081,1782034281000,-500.0,0.00029041,2]
[425915080,1782034281000,-500.0,0.00029041,2]
[425915091,1782034281000,-500.0,0.00029041,2]
[425915083,1782034281000,-500.0,0.00029041,2]
[425915084,1782034281000,-542.43,0.00029041,2]
[425915090,1782034281000,-500.0,0.00029041,2]
[425915088,1782034281000,-500.0,0.00029041,2]
[425915085,1782034281000,-407.64,0.00029041,2]
[425915087,1782034281000,-500.0,0.00029041,2]
[425915082,1782034281000,-500.0,0.00029041,2]
[425915086,1782034281000,-500.0,0.00029041,2]
[425915072,1782034281000,-991.63,0.00029041,2]
[425915092,1782034281000,-500.0,0.00029041,2]
[425915099,1782034281000,-500.0,0.00029041,2]
[425915104,1782034281000,-500.0,0.00029041,2]
[425915101,1782034281000,-500.0,0.00029041,2]
[425915093,1782034281000,-1302.96,0.00029041,2]
[425915089,1782034281000,-500.0,0.00029041,2]
[425915098,1782034281000,-325.80164562,0.00029041,2]
[425915095,1782034281000,-500.0,0.00029041,2]
[425915094,1782034281000,-500.0,0.00029041,2]
[425915102,1782034281000,-500.0,0.00029041,2]
[425915100,1782034281000,-640.0,0.00029041,2]
[425915103,1782034281000,-500.0,0.00029041,2]
[425915097,1782034281000,-500.0,0.00029041,2]
[425915096,1782034281000,-500.0,0.00029041,2]
[425915175,1782034282000,-500.0,0.00029041,2]
[425915170,1782034282000,-500.0,0.00029041,2]
[425915166,1782034282000,-500.0,0.00029041,2]
[425915172,1782034282000,-500.0,0.00029041,2]
[425915168,1782034282000,-500.0,0.00029041,2]
[425915174,1782034282000,-253.57877694,0.00029041,2]
[425915167,1782034282000,-500.0,0.00029041,2]
[425915171,1782034282000,-500.0,0.00029041,2]
[425915173,1782034282000,-641.14,0.00029041,2]
[425915169,1782034282000,-500.0,0.00029041,2]
[425915176,1782034282000,-500.0,0.00029041,2]
[425915178,1782034282000,-683.05,0.00029041,2]
[425915184,1782034282000,-500.0,0.00029041,2]
[425915180,1782034282000,-500.0,0.00029041,2]
[425915181,1782034282000,-500.0,0.00029041,2]
[425915182,1782034282000,-661.01,0.00029041,2]
[425915183,1782034282000,-500.0,0.00029041,2]
[425915179,1782034282000,-500.0,0.00029041,2]
[425915187,1782034282000,-500.0,0.00029041,2]
[425915186,1782034282000,-10443.29,0.00029041,2]
[425915185,1782034282000,-500.0,0.00029041,2]
[425915188,1782034282000,-500.0,0.00029041,2]
[425915197,1782034282000,-500.0,0.00029041,2]
[425915165,1782034282000,-500.0,0.00029041,2]
[425915190,1782034282000,-4118.11,0.00029041,2]
[425915177,1782034282000,-500.0,0.00029041,2]
[425915161,1782034282000,-881.16,0.00029041,2]
[425915143,1782034282000,-536.81384747,0.00029041,2]
[425915153,1782034282000,-500.0,0.00029041,2]
[425915200,1782034282000,-6460.99,0.00029041,2]
[425915136,1782034282000,-500.0,0.00029041,2]
[425915137,1782034282000,-612.81,0.00029041,2]
[425915139,1782034282000,-500.0,0.00029041,2]
[425915140,1782034282000,-500.0,0.00029041,2]
[425915138,1782034282000,-1180.61,0.00029041,2]
[425915141,1782034282000,-500.0,0.00029041,2]
[425915147,1782034282000,-500.0,0.00029041,2]
[425915145,1782034282000,-1449.9,0.00029041,2]